[Event "BL 2024-25"]
[Site "Austria"]
[Date "2024.10.10"]
[Round "2.35"]
[White "Hinterreiter, Markus"]
[Black "Ivanisevic, Ivan"]
[Result "0-1"]
[ECO "A06"]
[WhiteElo "2269"]
[BlackElo "2519"]
[Annotator "RC"]
[PlyCount "120"]
[EventDate "2024.08.28"]
[EventType "team-tourn"]
[EventCountry "AUT"]
[SourceTitle "playchess.com"]
[Source "ChessBase"]
[SourceQuality "1"]
[WhiteTeam "Salzburg"]
[BlackTeam "Pinggau-Friedberg"]
[TimeControl "40/5400+30:1800+30"]

1. Nf3 {[%emt 0:00:06]} d5 {[%emt 0:00:06]} 2. b3 {[%emt 0:01:22]} c5 {[%emt 0:00:36]} 3. e3 {[%emt 0:00:46]} f6 {[%emt 0:00:08]} 4. d4 {[%emt 0:03:16]} cxd4 {[%emt 0:00:06]} 5. exd4 {[%emt 0:00:19]} Nc6 {[%emt 0:00:06]} 6. Bb2 {[%emt 0:02:48]} Bg4 {[%emt 0:04:37]} 7. Nbd2 {[%emt 0:04:46]} e6 {[%emt 0:00:41]} 8. h3 {[%emt 0:09:30]} Bh5 {[%emt 0:00:09]} 9. Bd3 {[%emt 0:01:29]} Bd6 {[%emt 0:03:17]} 10. O-O {[%emt 0:05:47]} Nge7 {[%emt 0:01:17]} 11. Re1 {[%emt 0:01:57]} Bf7 {[%emt 0:01:23]} 12. c4 {[%emt 0:03:43]} O-O {[%emt 0:00:32]} 13. Rc1 {[%emt 0:04:23]} Ng6 {[%emt 0:01:51]} 14. a3 {[%emt 0:04:40]} a5 {[%emt 0:00:35]} 15. Nb1 {[%emt 0:05:42]} Qd7 {[%emt 0:02:44]} 16. Nc3 {[%emt 0:01:22]} Nf4 {[%emt 0:00:28]} 17. Bf1 {[%emt 0:05:08]} Rad8 {[%emt 0:04:51]} 18. g3 {[%emt 0:03:50]} Ng6 {[%emt 0:01:21]} 19. cxd5 {[%emt 0:03:29]} exd5 {[%emt 0:00:09]} 20. Nb5 {[%emt 0:02:28]} Bb8 {[%emt 0:00:29]} 21. a4 {[%emt 0:01:12]} Rfe8 {[%emt 0:00:33]} 22. Ba3 {[%emt 0:02:42]} Be6 {[%emt 0:04:21]} 23. h4 {[%emt 0:01:40]} Bg4 {[%emt 0:00:57]} 24. Bg2 {[%emt 0:01:49]} Re4 {[%emt 0:09:20]} 25. Qd2 {[%emt 0:00:53]} Bh3 {[%emt 0:03:57]} 26. Bh1 {[%emt 0:08:50]} Qf5 {[%emt 0:00:51]} 27. Nh2 {[%emt 0:05:50]} Rxe1+ {[%emt 0:01:24]} 28. Rxe1 {[%emt 0:00:23]} Nxh4 {[%emt 0:00:16]} 29. Qe3 {[%emt 0:04:44]} h5 {[%emt 0:03:10]} 30. Nf3 {[%emt 0:01:52]} Ng6 {[%emt 0:01:11]} 31. Bg2 {[%emt 0:01:02]} Bxg2 {[%emt 0:03:51]} 32. Kxg2 {[%emt 0:00:06]} Qg4 {[%emt 0:01:50]} 33. Qe6+ {[%emt 0:01:32]} Qxe6 {[%emt 0:00:14]} 34. Rxe6 {[%emt 0:00:02]} Kf7 {[%emt 0:00:09]} 35. Re1 {[%emt 0:00:39]} Nge7 {[%emt 0:00:17]} 36. Bc5 {[%emt 0:03:25]} g6 {[%emt 0:03:08]} 37. Kf1 {[%emt 0:02:38]} Nf5 {[%emt 0:00:57]} 38. Bb6 {[%emt 0:01:25]} Rd7 {[%emt 0:00:33]} 39. Rc1 {[%emt 0:01:16]} g5 {[%emt 0:01:58]} 40. Bc5 {[%emt 0:00:55]} h4 {[%emt 0:00:35]} 41. gxh4 {[%emt 0:02:49]} g4 {[%emt 0:05:15]} 42. Nd2 {[%emt 0:02:15]} Nxh4 {[%emt 0:00:39]} 43. Ke2 {[%emt 0:00:42]} Ng6 {[%emt 0:00:18]} 44. Rh1 {[%emt 0:02:14]} Nf4+ {[%emt 0:02:37]} 45. Kd1 {[%emt 0:01:32]} Nh3 {[%emt 0:01:45]} 46. Ke1 {[%emt 0:02:30]} Kg6 {[%emt 0:00:53]} 47. Nf1 {[%emt 0:00:52]} Bf4 {[%emt 0:02:56]} 48. Nc3 {[%emt 0:01:13]} Rd8 {[%emt 0:04:54]} 49. Ne3 {[%emt 0:01:46]} Bxe3 {[%emt 0:01:07]} 50. fxe3 {[%emt 0:00:03]} f5 {[%emt 0:00:39]} 51. Bb6 {[%emt 0:00:54]} Rd7 {[%emt 0:00:14]} 52. Kf1 {[%emt 0:01:20]} f4 {[%emt 0:02:36]} 53. exf4 {[%emt 0:00:39]} Kf5 {[%emt 0:00:26]} 54. Kg2 {[%emt 0:01:07]} Nxf4+ {[%emt 0:00:41]} 55. Kf2 {[%emt 0:00:57]} Rg7 {[%emt 0:03:07]} 56. Rh8 {[%emt 0:01:40]} g3+ {[%emt 0:00:14]} 57. Kg1 {[%emt 0:00:11]} Kg4 {[%emt 0:01:34]} 58. Rf8 {[%emt 0:01:34]} Rh7 {[%emt 0:04:02]} 59. Bc5 {[%emt 0:01:11]} Rh2 {[%emt 0:00:59]} 60. Rf7 {[%emt 0:01:10]} Nh3+ {[%emt 0:00:10]} 0-1

[Event "BL 2024-25"]
[Site "Austria"]
[Date "2024.10.10"]
[Round "2.36"]
[White "Baidetskyi, Valentin"]
[Black "Weber, Samuel"]
[Result "1-0"]
[ECO "B12"]
[WhiteElo "2505"]
[BlackElo "2256"]
[Annotator "RC"]
[PlyCount "81"]
[EventDate "2024.08.28"]
[EventType "team-tourn"]
[EventCountry "AUT"]
[SourceTitle "playchess.com"]
[Source "ChessBase"]
[SourceQuality "1"]
[WhiteTeam "Pinggau-Friedberg"]
[BlackTeam "Salzburg"]
[TimeControl "40/5400+30:1800+30"]

1. e4 {[%emt 0:00:03]} c6 {[%emt 0:00:31]} 2. d4 {[%emt 0:00:07]} d5 {[%emt 0:00:06]} 3. f3 {[%emt 0:00:02]} e6 {[%emt 0:00:16]} 4. Nc3 {[%emt 0:00:09]} Bb4 {[%emt 0:00:44]} 5. Bd2 {[%emt 0:00:18]} Ne7 {[%emt 0:09:43]} 6. h4 {[%emt 0:00:09]} Nd7 {[%emt 0:15:06]} 7. h5 {[%emt 0:01:47]} h6 {[%emt 0:00:24]} 8. e5 {[%emt 0:14:22]} Nf5 {[%emt 0:04:01]} 9. Nce2 {[%emt 0:08:07]} Be7 {[%emt 0:05:11]} 10. Bf4 {[%emt 0:40:41]} O-O {[%emt 0:14:43]} 11. Qd2 {[%emt 0:08:09]} c5 {[%emt 0:03:39]} 12. dxc5 {[%emt 0:00:20]} f6 {[%emt 0:04:05]} 13. exf6 {[%emt 0:01:02]} Bxf6 {[%emt 0:00:20]} 14. g4 {[%emt 0:02:39]} Nh4 {[%emt 0:02:27]} 15. Bd6 {[%emt 0:02:00]} Bxb2 {[%emt 0:10:40]} 16. Bxf8 {[%emt 0:09:28]} Bxa1 {[%emt 0:10:19]} 17. Bd6 {[%emt 0:00:06]} Bf6 {[%emt 0:01:17]} 18. Nd4 {[%emt 0:04:06]} Ne5 {[%emt 0:00:30]} 19. Kd1 {[%emt 0:02:50]} Nf7 {[%emt 0:01:52]} 20. Bg3 {[%emt 0:01:51]} e5 {[%emt 0:01:21]} 21. Nb5 {[%emt 0:00:41]} Be6 {[%emt 0:01:10]} 22. Qe1 {[%emt 0:00:23]} a6 {[%emt 0:00:49]} 23. Nc3 {[%emt 0:00:06]} Nxf3 {[%emt 0:01:05]} 24. Nxf3 {[%emt 0:00:01]} e4 {[%emt 0:00:14]} 25. Nh4 {[%emt 0:00:13]} Bxg4+ {[%emt 0:06:00]} 26. Be2 {[%emt 0:00:05]} Bxe2+ {[%emt 0:06:57]} 27. Nxe2 {[%emt 0:00:15]} b6 {[%emt 0:00:00]} 28. c6 {[%emt 0:00:08]} Qe7 {[%emt 0:00:00]} 29. c7 {[%emt 0:00:58]} Ne5 {[%emt 0:00:00]} 30. Qd2 {[%emt 0:00:42]} Qd7 {[%emt 0:01:20]} 31. Bxe5 {[%emt 0:03:19]} Bxe5 {[%emt 0:00:01]} 32. Ng6 {[%emt 0:00:08]} Bxc7 {[%emt 0:00:24]} 33. Rf1 {[%emt 0:00:09]} Rd8 {[%emt 0:00:46]} 34. Kc1 {[%emt 0:00:46]} Qd6 {[%emt 0:00:55]} 35. Qc3 {[%emt 0:00:34]} b5 {[%emt 0:00:23]} 36. Nd4 {[%emt 0:00:11]} Bb6 {[%emt 0:00:34]} 37. Nf5 {[%emt 0:00:06]} Qc7 {[%emt 0:00:36]} 38. Nge7+ {[%emt 0:00:03]} Kf7 {[%emt 0:00:24]} 39. Nxg7+ {[%emt 0:00:47]} Kxe7 {[%emt 0:00:25]} 40. Qf6+ {[%emt 0:00:01]} Kd7 {[%emt 0:00:35]} 41. Qe6# {[%emt 0:30:03]} 1-0